[Event "Titled Tuesday Blitz March 21 Early 2023"]
[White "Ruge, Edison"]
[Black "Dinu, Dumitru-Daniel"]
[WhiteFideId "4401000"]
[BlackFideId "1208403"]
[WhiteElo "2175"]
[BlackElo "2240"]
[Result "1-0"]
[Round "08"]
[TimeControl "180+2"]
[Date "2023.03.21"]
[WhiteClock "0:00:24"]
[BlackClock "0:00:03"]

1. e4 {[%clk 0:02:50]}  c5 {[%clk 0:02:58]} 2. Nf3 {[%clk 0:02:50]}  e6 {[%clk 0:02:56]} 3. d3 {[%clk 0:02:51]}  Nc6 {[%clk 0:02:56]} 4. Nbd2 {[%clk 0:02:52]}  g6 {[%clk 0:02:56]} 5. g3 {[%clk 0:02:52]}  Bg7 {[%clk 0:02:56]} 6. Bg2 {[%clk 0:02:52]}  Nge7 {[%clk 0:02:56]} 7. h4 {[%clk 0:02:52]}  h5 {[%clk 0:02:54]} 8. O-O {[%clk 0:02:51]}  O-O {[%clk 0:02:53]} 9. c3 {[%clk 0:02:52]}  d5 {[%clk 0:02:50]} 10. Re1 {[%clk 0:02:49]}  b6 {[%clk 0:02:50]} 11. e5 {[%clk 0:02:45]}  Ba6 {[%clk 0:02:49]} 12. Nf1 {[%clk 0:02:40]}  Rc8 {[%clk 0:02:48]} 13. Bf4 {[%clk 0:02:40]}  b5 {[%clk 0:02:35]} 14. Qd2 {[%clk 0:02:40]}  b4 {[%clk 0:02:34]} 15. Rad1 {[%clk 0:02:33]}  bxc3 {[%clk 0:02:32]} 16. bxc3 {[%clk 0:02:33]}  d4 {[%clk 0:02:30]} 17. c4 {[%clk 0:02:31]}  Qa5 {[%clk 0:02:27]} 18. Qxa5 {[%clk 0:02:27]}  Nxa5 {[%clk 0:02:28]} 19. Rb1 {[%clk 0:02:26]}  Rb8 {[%clk 0:02:26]} 20. N1d2 {[%clk 0:02:23]}  Nec6 {[%clk 0:02:20]} 21. a3 {[%clk 0:02:22]}  Rfd8 {[%clk 0:02:03]} 22. Ne4 {[%clk 0:02:21]}  Bf8 {[%clk 0:02:03]} 23. Bg5 {[%clk 0:02:18]}  Rdc8 {[%clk 0:01:52]} 24. Nf6+ {[%clk 0:02:15]}  Kg7 {[%clk 0:01:52]} 25. Nd7 {[%clk 0:02:12]}  Rb3 {[%clk 0:01:52]} 26. Rxb3 {[%clk 0:01:52]}  Nxb3 {[%clk 0:01:53]} 27. Rb1 {[%clk 0:01:48]}  Nca5 {[%clk 0:01:51]} 28. Bf6+ {[%clk 0:01:31]}  Kg8 {[%clk 0:01:47]} 29. Ng5 {[%clk 0:01:28]}  Rc7 {[%clk 0:01:29]} 30. Nxf8 {[%clk 0:01:27]}  Kxf8 {[%clk 0:01:29]} 31. Ne4 {[%clk 0:01:24]}  Bb7 {[%clk 0:01:13]} 32. Bd8 {[%clk 0:01:20]}  Bxe4 {[%clk 0:00:35]} 33. Bxe4 {[%clk 0:01:14]}  Rc8 {[%clk 0:00:20]} 34. Bg5 {[%clk 0:01:01]}  Nd2 {[%clk 0:00:16]} 35. Bxd2 {[%clk 0:00:59]}  Nc6 {[%clk 0:00:15]} 36. Bxc6 {[%clk 0:00:58]}  Rxc6 {[%clk 0:00:15]} 37. a4 {[%clk 0:00:58]}  Ra6 {[%clk 0:00:16]} 38. a5 {[%clk 0:00:58]}  Kg7 {[%clk 0:00:16]} 39. Rb7 {[%clk 0:00:55]}  g5 {[%clk 0:00:13]} 40. hxg5 {[%clk 0:00:52]}  Kg6 {[%clk 0:00:13]} 41. Kg2 {[%clk 0:00:52]}  Kf5 {[%clk 0:00:13]} 42. f4 {[%clk 0:00:51]}  Kg4 {[%clk 0:00:13]} 43. Rxf7 {[%clk 0:00:51]}  Rc6 {[%clk 0:00:12]} 44. g6 {[%clk 0:00:49]}  Rc8 {[%clk 0:00:13]} 45. g7 {[%clk 0:00:49]}  Rb8 {[%clk 0:00:11]} 46. a6 {[%clk 0:00:31]}  Rg8 {[%clk 0:00:09]} 47. Rxa7 {[%clk 0:00:30]}  h4 {[%clk 0:00:09]} 48. gxh4 {[%clk 0:00:30]}  Kf5 {[%clk 0:00:08]} 49. Rf7+ {[%clk 0:00:30]}  Kg4 {[%clk 0:00:05]} 50. a7 {[%clk 0:00:29]}  Kh5 {[%clk 0:00:03]} 51. f5 {[%clk 0:00:28]}  Rxg7+ {[%clk 0:00:04]} 52. Rxg7 {[%clk 0:00:26]}  exf5 {[%clk 0:00:03]} 53. a8=Q {[%clk 0:00:24]}  f4 {[%clk 0:00:03]} 54. Qh8# {[%clk 0:00:24]} 1-0


[Site "https://www.chess.com"]

[Event "Titled Tuesday Blitz March 21 Early 2023"]
[White "Shuvalov, Evgenij"]
[Black "Martinez, Shawn"]
[WhiteFideId "4187237"]
[BlackFideId "2039770"]
[WhiteElo "2080"]
[BlackElo "2174"]
[Result "1-0"]
[Round "08"]
[TimeControl "180+2"]
[Date "2023.03.21"]
[WhiteClock "0:00:20"]
[BlackClock "0:00:08"]

1. d4 {[%clk 0:02:01]}  Nf6 {[%clk 0:02:49]} 2. c4 {[%clk 0:02:01]}  g6 {[%clk 0:02:50]} 3. Nc3 {[%clk 0:02:01]}  Bg7 {[%clk 0:02:50]} 4. e4 {[%clk 0:02:01]}  d6 {[%clk 0:02:51]} 5. Nf3 {[%clk 0:02:02]}  O-O {[%clk 0:02:51]} 6. Be2 {[%clk 0:02:02]}  Bg4 {[%clk 0:02:49]} 7. Be3 {[%clk 0:02:01]}  Nc6 {[%clk 0:02:46]} 8. Ng1 {[%clk 0:02:00]}  Bxe2 {[%clk 0:02:43]} 9. Ngxe2 {[%clk 0:02:01]}  e5 {[%clk 0:02:44]} 10. d5 {[%clk 0:02:00]}  Ne7 {[%clk 0:02:44]} 11. f3 {[%clk 0:02:00]}  Nd7 {[%clk 0:02:44]} 12. O-O {[%clk 0:02:00]}  f5 {[%clk 0:02:45]} 13. b4 {[%clk 0:01:58]}  f4 {[%clk 0:02:45]} 14. Bf2 {[%clk 0:01:58]}  g5 {[%clk 0:02:46]} 15. Nc1 {[%clk 0:01:57]}  h5 {[%clk 0:02:39]} 16. Nd3 {[%clk 0:01:57]}  Rf6 {[%clk 0:02:37]} 17. c5 {[%clk 0:01:56]}  Rg6 {[%clk 0:02:37]} 18. Rc1 {[%clk 0:01:48]}  g4 {[%clk 0:02:29]} 19. Bh4 {[%clk 0:01:48]}  Qe8 {[%clk 0:02:29]} 20. Nb5 {[%clk 0:01:46]}  Rc8 {[%clk 0:02:15]} 21. Nxa7 {[%clk 0:01:43]}  Ra8 {[%clk 0:02:15]} 22. Nb5 {[%clk 0:01:44]}  gxf3 {[%clk 0:02:12]} 23. Qxf3 {[%clk 0:01:36]}  Rxa2 {[%clk 0:02:03]} 24. Rf2 {[%clk 0:01:36]}  Rxf2 {[%clk 0:02:00]} 25. Nxf2 {[%clk 0:01:35]}  dxc5 {[%clk 0:01:19]} 26. Nxc7 {[%clk 0:01:27]}  Qf7 {[%clk 0:01:15]} 27. bxc5 {[%clk 0:01:25]}  Nf6 {[%clk 0:01:05]} 28. Ne6 {[%clk 0:01:16]}  Ng4 {[%clk 0:01:04]} 29. Nxg4 {[%clk 0:00:57]}  hxg4 {[%clk 0:01:01]} 30. Qb3 {[%clk 0:00:57]}  g3 {[%clk 0:00:51]} 31. h3 {[%clk 0:00:52]}  f3 {[%clk 0:00:43]} 32. Qxf3 {[%clk 0:00:49]}  Bh6 {[%clk 0:00:28]} 33. Qxf7+ {[%clk 0:00:43]}  Kxf7 {[%clk 0:00:28]} 34. Rc3 {[%clk 0:00:42]}  Bf4 {[%clk 0:00:21]} 35. Rf3 {[%clk 0:00:35]}  Rxe6 {[%clk 0:00:17]} 36. dxe6+ {[%clk 0:00:34]}  Kxe6 {[%clk 0:00:18]} 37. Bxg3 {[%clk 0:00:34]}  Bg5 {[%clk 0:00:14]} 38. Bf2 {[%clk 0:00:33]}  Nc6 {[%clk 0:00:14]} 39. h4 {[%clk 0:00:32]}  Bf4 {[%clk 0:00:14]} 40. g3 {[%clk 0:00:32]}  Bc1 {[%clk 0:00:13]} 41. Rb3 {[%clk 0:00:30]}  Nd8 {[%clk 0:00:12]} 42. Kg2 {[%clk 0:00:28]}  Bh6 {[%clk 0:00:11]} 43. Kf3 {[%clk 0:00:28]}  Bf8 {[%clk 0:00:12]} 44. g4 {[%clk 0:00:27]}  Kd7 {[%clk 0:00:11]} 45. g5 {[%clk 0:00:27]}  Kc6 {[%clk 0:00:11]} 46. h5 {[%clk 0:00:27]}  Ne6 {[%clk 0:00:12]} 47. Kg4 {[%clk 0:00:26]}  Bxc5 {[%clk 0:00:10]} 48. Bxc5 {[%clk 0:00:26]}  Nxc5 {[%clk 0:00:11]} 49. Rc3 {[%clk 0:00:26]}  b5 {[%clk 0:00:11]} 50. h6 {[%clk 0:00:26]}  b4 {[%clk 0:00:12]} 51. Rc1 {[%clk 0:00:27]}  Kd6 {[%clk 0:00:10]} 52. h7 {[%clk 0:00:21]}  Nd3 {[%clk 0:00:08]} 53. Rd1 {[%clk 0:00:20]} 1-0


[Site "https://www.chess.com"]

[Event "Titled Tuesday Blitz March 21 Early 2023"]
[White "Zaichenko, Daria"]
[Black "Kozin, Yuri"]
[WhiteFideId "4197453"]
[BlackFideId "4129920"]
[WhiteElo "2039"]
[BlackElo "2509"]
[Result "0-1"]
[Round "08"]
[TimeControl "180+2"]
[Date "2023.03.21"]
[WhiteClock "0:00:01"]
[BlackClock "0:00:12"]

1. e4 {[%clk 0:02:59]}  c5 {[%clk 0:02:57]} 2. Nf3 {[%clk 0:03:00]}  e6 {[%clk 0:02:57]} 3. d4 {[%clk 0:03:00]}  cxd4 {[%clk 0:02:58]} 4. Nxd4 {[%clk 0:03:01]}  Nf6 {[%clk 0:02:58]} 5. Nc3 {[%clk 0:02:58]}  d6 {[%clk 0:02:58]} 6. Bg5 {[%clk 0:02:48]}  Be7 {[%clk 0:02:57]} 7. Ndb5 {[%clk 0:02:48]}  a6 {[%clk 0:02:54]} 8. Bxf6 {[%clk 0:02:46]}  gxf6 {[%clk 0:02:52]} 9. Nd4 {[%clk 0:02:45]}  Qc7 {[%clk 0:02:48]} 10. Bd3 {[%clk 0:02:41]}  Bd7 {[%clk 0:02:46]} 11. O-O {[%clk 0:02:38]}  Nc6 {[%clk 0:02:45]} 12. Be2 {[%clk 0:02:25]}  Rg8 {[%clk 0:02:38]} 13. a4 {[%clk 0:02:20]}  Qb6 {[%clk 0:02:25]} 14. Nb3 {[%clk 0:02:16]}  Ne5 {[%clk 0:02:21]} 15. a5 {[%clk 0:02:15]}  Qa7 {[%clk 0:02:12]} 16. Qd4 {[%clk 0:02:11]}  Qxd4 {[%clk 0:01:57]} 17. Nxd4 {[%clk 0:02:11]}  Rc8 {[%clk 0:01:56]} 18. f4 {[%clk 0:02:08]}  Nc4 {[%clk 0:01:50]} 19. Na4 {[%clk 0:01:44]}  Ne3 {[%clk 0:01:29]} 20. Rf2 {[%clk 0:01:43]}  Nxc2 {[%clk 0:01:21]} 21. Nxc2 {[%clk 0:00:49]}  Rxc2 {[%clk 0:01:22]} 22. Nb6 {[%clk 0:00:47]}  Rxb2 {[%clk 0:01:14]} 23. e5 {[%clk 0:00:36]}  dxe5 {[%clk 0:01:05]} 24. Nxd7 {[%clk 0:00:36]}  Kxd7 {[%clk 0:01:02]} 25. Rd1+ {[%clk 0:00:35]}  Kc7 {[%clk 0:01:00]} 26. Rc1+ {[%clk 0:00:34]}  Kb8 {[%clk 0:00:57]} 27. fxe5 {[%clk 0:00:33]}  f5 {[%clk 0:00:51]} 28. Bf3 {[%clk 0:00:28]}  Rb5 {[%clk 0:00:46]} 29. Rfc2 {[%clk 0:00:23]}  Bg5 {[%clk 0:00:37]} 30. Rd1 {[%clk 0:00:23]}  Rd8 {[%clk 0:00:30]} 31. Rxd8+ {[%clk 0:00:17]}  Bxd8 {[%clk 0:00:31]} 32. Rd2 {[%clk 0:00:16]}  Kc8 {[%clk 0:00:24]} 33. Rc2+ {[%clk 0:00:11]}  Bc7 {[%clk 0:00:22]} 34. Kf1 {[%clk 0:00:09]}  Rxa5 {[%clk 0:00:22]} 35. Rc4 {[%clk 0:00:09]}  Rxe5 {[%clk 0:00:21]} 36. Rh4 {[%clk 0:00:09]}  f6 {[%clk 0:00:18]} 37. Rxh7 {[%clk 0:00:09]}  Re3 {[%clk 0:00:16]} 38. Rh8+ {[%clk 0:00:08]}  Kd7 {[%clk 0:00:16]} 39. Bxb7 {[%clk 0:00:08]}  a5 {[%clk 0:00:14]} 40. Ra8 {[%clk 0:00:06]}  Ra3 {[%clk 0:00:13]} 41. Ke2 {[%clk 0:00:04]}  Bxh2 {[%clk 0:00:13]} 42. Ra7 {[%clk 0:00:01]}  Bc7 {[%clk 0:00:12]} 0-1


[Site "https://www.chess.com"]

[Event "Titled Tuesday Blitz March 21 Early 2023"]
[White "Biriukov, Ilja"]
[Black "Bethke, Richard"]
[WhiteFideId "4113373"]
[BlackFideId "12959243"]
[WhiteElo "2426"]
[BlackElo "2369"]
[Result "0-1"]
[Round "08"]
[TimeControl "180+2"]
[Date "2023.03.21"]
[WhiteClock "0:00:02"]
[BlackClock "0:00:28"]

1. c4 {[%clk 0:03:00]}  Nf6 {[%clk 0:02:02]} 2. Nc3 {[%clk 0:03:00]}  e6 {[%clk 0:02:02]} 3. Nf3 {[%clk 0:02:58]}  Bb4 {[%clk 0:02:02]} 4. g3 {[%clk 0:02:53]}  b6 {[%clk 0:02:02]} 5. Bg2 {[%clk 0:02:53]}  Bb7 {[%clk 0:02:01]} 6. O-O {[%clk 0:02:53]}  O-O {[%clk 0:02:01]} 7. d3 {[%clk 0:02:48]}  Bxc3 {[%clk 0:01:55]} 8. bxc3 {[%clk 0:02:47]}  d6 {[%clk 0:01:54]} 9. Qc2 {[%clk 0:02:37]}  Nbd7 {[%clk 0:01:53]} 10. e4 {[%clk 0:02:30]}  Re8 {[%clk 0:01:52]} 11. Re1 {[%clk 0:02:24]}  h6 {[%clk 0:01:51]} 12. h3 {[%clk 0:02:17]}  a5 {[%clk 0:01:48]} 13. Be3 {[%clk 0:02:15]}  Qe7 {[%clk 0:01:42]} 14. Rab1 {[%clk 0:02:08]}  d5 {[%clk 0:01:38]} 15. exd5 {[%clk 0:01:42]}  exd5 {[%clk 0:01:38]} 16. Bxb6 {[%clk 0:01:31]}  Qd6 {[%clk 0:01:36]} 17. Bd4 {[%clk 0:01:19]}  Ba6 {[%clk 0:01:33]} 18. cxd5 {[%clk 0:01:15]}  Nxd5 {[%clk 0:01:32]} 19. Nd2 {[%clk 0:00:55]}  c5 {[%clk 0:01:27]} 20. Be3 {[%clk 0:00:51]}  Nxe3 {[%clk 0:01:18]} 21. Rxe3 {[%clk 0:00:47]}  Rxe3 {[%clk 0:01:14]} 22. fxe3 {[%clk 0:00:47]}  Bxd3 {[%clk 0:01:14]} 23. Qc1 {[%clk 0:00:41]}  Re8 {[%clk 0:01:14]} 24. Rb7 {[%clk 0:00:33]}  Qxg3 {[%clk 0:00:58]} 25. Rxd7 {[%clk 0:00:22]}  Rxe3 {[%clk 0:00:46]} 26. Rxd3 {[%clk 0:00:05]}  Rxd3 {[%clk 0:00:42]} 27. Nf1 {[%clk 0:00:05]}  Qg6 {[%clk 0:00:40]} 28. Qc2 {[%clk 0:00:04]}  Rg3 {[%clk 0:00:29]} 29. Qxg6 {[%clk 0:00:02]}  fxg6 {[%clk 0:00:28]} 30. c4 {[%clk 0:00:02]}  Ra3 {[%clk 0:00:28]} 0-1


[Site "https://www.chess.com"]

[Event "Titled Tuesday Blitz March 21 Early 2023"]
[White "Manukian, Artak"]
[Black "Abrosimov, Vladimir"]
[WhiteFideId "13301373"]
[BlackFideId "4166892"]
[WhiteElo "2130"]
[BlackElo "2336"]
[Result "1/2-1/2"]
[Round "08"]
[TimeControl "180+2"]
[Date "2023.03.21"]
[WhiteClock "0:00:52"]
[BlackClock "0:00:12"]

1. e4 {[%clk 0:02:51]}  c5 {[%clk 0:02:59]} 2. Nf3 {[%clk 0:02:51]}  d6 {[%clk 0:03:00]} 3. Bb5+ {[%clk 0:02:50]}  Bd7 {[%clk 0:03:00]} 4. Bxd7+ {[%clk 0:02:50]}  Nxd7 {[%clk 0:03:00]} 5. c4 {[%clk 0:02:51]}  Ngf6 {[%clk 0:03:01]} 6. Nc3 {[%clk 0:02:51]}  g6 {[%clk 0:03:01]} 7. O-O {[%clk 0:02:51]}  Bg7 {[%clk 0:03:02]} 8. d3 {[%clk 0:02:48]}  O-O {[%clk 0:03:02]} 9. Bg5 {[%clk 0:02:49]}  h6 {[%clk 0:03:01]} 10. Be3 {[%clk 0:02:48]}  a6 {[%clk 0:02:59]} 11. Qd2 {[%clk 0:02:45]}  Kh7 {[%clk 0:02:58]} 12. h3 {[%clk 0:02:42]}  e6 {[%clk 0:02:52]} 13. a4 {[%clk 0:02:42]}  Ng8 {[%clk 0:02:45]} 14. Nh2 {[%clk 0:02:37]}  f5 {[%clk 0:02:42]} 15. f4 {[%clk 0:02:33]}  e5 {[%clk 0:02:38]} 16. g4 {[%clk 0:02:31]}  fxe4 {[%clk 0:02:34]} 17. dxe4 {[%clk 0:02:25]}  exf4 {[%clk 0:02:30]} 18. Bxf4 {[%clk 0:02:25]}  Bd4+ {[%clk 0:02:29]} 19. Kg2 {[%clk 0:02:25]}  Ne5 {[%clk 0:02:27]} 20. Bxe5 {[%clk 0:02:20]}  dxe5 {[%clk 0:02:24]} 21. Nd5 {[%clk 0:02:17]}  Nf6 {[%clk 0:02:17]} 22. Nxf6+ {[%clk 0:02:11]}  Rxf6 {[%clk 0:02:16]} 23. Rxf6 {[%clk 0:02:12]}  Qxf6 {[%clk 0:02:17]} 24. Rf1 {[%clk 0:02:12]}  Qe7 {[%clk 0:02:12]} 25. Nf3 {[%clk 0:02:09]}  Rf8 {[%clk 0:02:11]} 26. b3 {[%clk 0:02:01]}  Rf4 {[%clk 0:02:01]} 27. Qe2 {[%clk 0:01:58]}  Qf7 {[%clk 0:01:53]} 28. Nd2 {[%clk 0:01:42]}  g5 {[%clk 0:01:35]} 29. Rf3 {[%clk 0:01:37]}  Kg6 {[%clk 0:01:26]} 30. Nf1 {[%clk 0:01:35]}  Rxf3 {[%clk 0:01:10]} 31. Qxf3 {[%clk 0:01:36]}  Qf4 {[%clk 0:01:10]} 32. Ng3 {[%clk 0:01:25]}  Qd2+ {[%clk 0:00:48]} 33. Ne2 {[%clk 0:01:22]}  Qe1 {[%clk 0:00:34]} 34. Qf5+ {[%clk 0:01:17]}  Kg7 {[%clk 0:00:32]} 35. Nxd4 {[%clk 0:01:16]}  exd4 {[%clk 0:00:30]} 36. Qd7+ {[%clk 0:01:08]}  Kg6 {[%clk 0:00:19]} 37. Qd6+ {[%clk 0:01:07]}  Kg7 {[%clk 0:00:16]} 38. Qe7+ {[%clk 0:01:01]}  Kg6 {[%clk 0:00:17]} 39. Qe8+ {[%clk 0:00:59]}  Kg7 {[%clk 0:00:14]} 40. Qd7+ {[%clk 0:00:59]}  Kg6 {[%clk 0:00:13]} 41. Qe6+ {[%clk 0:00:59]}  Kg7 {[%clk 0:00:12]} 42. Qd7+ {[%clk 0:00:52]} 1/2-1/2


[Site "https://www.chess.com"]

[Event "Titled Tuesday Blitz March 21 Early 2023"]
[White "Kopczynski, Michal"]
[Black "victormago"]
[WhiteFideId "1124200"]
[WhiteElo "2212"]
[BlackElo "2255"]
[Result "1-0"]
[Round "08"]
[TimeControl "180+2"]
[Date "2023.03.21"]
[WhiteClock "0:01:49"]
[BlackClock "0:00:51"]

1. e4 {[%clk 0:03:00]}  c5 {[%clk 0:03:00]} 2. d4 {[%clk 0:03:00]}  cxd4 {[%clk 0:02:59]} 3. c3 {[%clk 0:03:01]}  dxc3 {[%clk 0:02:58]} 4. Nxc3 {[%clk 0:03:02]}  Nc6 {[%clk 0:02:59]} 5. f4 {[%clk 0:03:03]}  d6 {[%clk 0:02:56]} 6. Nf3 {[%clk 0:03:03]}  g6 {[%clk 0:02:56]} 7. Bc4 {[%clk 0:03:03]}  Bg7 {[%clk 0:02:55]} 8. O-O {[%clk 0:03:04]}  Nh6 {[%clk 0:02:45]} 9. Kh1 {[%clk 0:03:04]}  O-O {[%clk 0:02:44]} 10. Qe1 {[%clk 0:03:05]}  Bg4 {[%clk 0:02:15]} 11. f5 {[%clk 0:02:56]}  gxf5 {[%clk 0:02:06]} 12. Qh4 {[%clk 0:02:51]}  Bxf3 {[%clk 0:01:56]} 13. gxf3 {[%clk 0:02:44]}  Ne5 {[%clk 0:01:47]} 14. Bxh6 {[%clk 0:02:44]}  Ng6 {[%clk 0:01:34]} 15. Qh5 {[%clk 0:02:39]}  Bxh6 {[%clk 0:01:29]} 16. Qxh6 {[%clk 0:02:38]}  e6 {[%clk 0:01:28]} 17. exf5 {[%clk 0:02:36]}  exf5 {[%clk 0:01:28]} 18. Nd5 {[%clk 0:02:31]}  Rc8 {[%clk 0:01:18]} 19. Bb3 {[%clk 0:02:30]}  b5 {[%clk 0:01:06]} 20. Rae1 {[%clk 0:02:25]}  a5 {[%clk 0:00:59]} 21. Rg1 {[%clk 0:02:24]}  Kh8 {[%clk 0:00:58]} 22. Nf4 {[%clk 0:02:11]}  Qf6 {[%clk 0:00:51]} 23. Bxf7 {[%clk 0:01:49]} 1-0


[Site "https://www.chess.com"]

[Event "Titled Tuesday Blitz March 21 Early 2023"]
[White "Thiel, Thomas"]
[Black "Jimenez Jimenez, Leandro"]
[WhiteFideId "4615964"]
[BlackFideId "6415253"]
[WhiteElo "2242"]
[BlackElo "2263"]
[Result "0-1"]
[Round "08"]
[TimeControl "180+2"]
[Date "2023.03.21"]
[WhiteClock "0:01:16"]
[BlackClock "0:00:59"]

1. e4 {[%clk 0:03:00]}  c6 {[%clk 0:02:56]} 2. d4 {[%clk 0:02:58]}  d5 {[%clk 0:02:57]} 3. exd5 {[%clk 0:02:57]}  cxd5 {[%clk 0:02:58]} 4. c4 {[%clk 0:02:56]}  Nf6 {[%clk 0:02:58]} 5. Nc3 {[%clk 0:02:54]}  Nc6 {[%clk 0:02:58]} 6. Bg5 {[%clk 0:02:52]}  dxc4 {[%clk 0:02:54]} 7. Bxc4 {[%clk 0:02:49]}  h6 {[%clk 0:02:54]} 8. Bxf6 {[%clk 0:02:47]}  exf6 {[%clk 0:02:53]} 9. Nge2 {[%clk 0:02:47]}  Bd6 {[%clk 0:02:51]} 10. O-O {[%clk 0:02:40]}  O-O {[%clk 0:02:51]} 11. Ne4 {[%clk 0:02:36]}  Bf5 {[%clk 0:02:48]} 12. Nxd6 {[%clk 0:02:24]}  Qxd6 {[%clk 0:02:48]} 13. a3 {[%clk 0:02:22]}  Rad8 {[%clk 0:02:43]} 14. d5 {[%clk 0:02:15]}  Ne5 {[%clk 0:02:36]} 15. Ba2 {[%clk 0:02:13]}  Ng4 {[%clk 0:02:33]} 16. g3 {[%clk 0:02:12]}  Rfe8 {[%clk 0:02:32]} 17. Nf4 {[%clk 0:02:08]}  g5 {[%clk 0:02:30]} 18. Nh5 {[%clk 0:02:01]}  Kh7 {[%clk 0:02:26]} 19. h3 {[%clk 0:01:48]}  Ne5 {[%clk 0:02:21]} 20. g4 {[%clk 0:01:47]}  Bg6 {[%clk 0:02:20]} 21. Ng3 {[%clk 0:01:45]}  Nd3 {[%clk 0:02:00]} 22. Qd2 {[%clk 0:01:40]}  Qb6 {[%clk 0:01:35]} 23. b4 {[%clk 0:01:30]}  Nf4 {[%clk 0:01:29]} 24. Kh2 {[%clk 0:01:23]}  Re5 {[%clk 0:01:25]} 25. Rfe1 {[%clk 0:01:20]}  Rde8 {[%clk 0:01:00]} 26. Rxe5 {[%clk 0:01:18]}  Rxe5 {[%clk 0:01:01]} 27. d6 {[%clk 0:01:16]}  Re2 {[%clk 0:00:59]} 0-1


[Site "https://www.chess.com"]

[Event "Titled Tuesday Blitz March 21 Early 2023"]
[White "Barria Santos, Jose Guilherme"]
[Black "Avazkhonov, Alikhon"]
[WhiteFideId "1939300"]
[BlackFideId "14208504"]
[WhiteElo "2301"]
[BlackElo "1739"]
[Result "0-1"]
[Round "08"]
[TimeControl "180+2"]
[Date "2023.03.21"]
[WhiteClock "0:00:31"]
[BlackClock "0:01:49"]

1. e4 {[%clk 0:03:00]}  c5 {[%clk 0:02:49]} 2. Nf3 {[%clk 0:03:00]}  d6 {[%clk 0:02:49]} 3. d4 {[%clk 0:03:01]}  cxd4 {[%clk 0:02:50]} 4. Nxd4 {[%clk 0:03:01]}  Nf6 {[%clk 0:02:51]} 5. Nc3 {[%clk 0:03:02]}  a6 {[%clk 0:02:52]} 6. Bg5 {[%clk 0:03:02]}  e6 {[%clk 0:02:52]} 7. f4 {[%clk 0:03:03]}  Be7 {[%clk 0:02:52]} 8. Qf3 {[%clk 0:03:03]}  h6 {[%clk 0:02:52]} 9. Bh4 {[%clk 0:03:02]}  Nbd7 {[%clk 0:02:52]} 10. O-O-O {[%clk 0:03:02]}  Qc7 {[%clk 0:02:52]} 11. Bf2 {[%clk 0:03:01]}  b5 {[%clk 0:02:42]} 12. Kb1 {[%clk 0:02:50]}  Bb7 {[%clk 0:02:41]} 13. Bd3 {[%clk 0:02:49]}  Nc5 {[%clk 0:02:42]} 14. Rhe1 {[%clk 0:02:42]}  b4 {[%clk 0:02:37]} 15. Nce2 {[%clk 0:02:22]}  Nfxe4 {[%clk 0:02:35]} 16. Bxe4 {[%clk 0:02:14]}  Bxe4 {[%clk 0:02:30]} 17. Qe3 {[%clk 0:02:04]}  e5 {[%clk 0:02:29]} 18. fxe5 {[%clk 0:02:03]}  dxe5 {[%clk 0:02:30]} 19. Bg3 {[%clk 0:02:01]}  exd4 {[%clk 0:02:24]} 20. Nxd4 {[%clk 0:01:55]}  Qb7 {[%clk 0:02:24]} 21. Nb3 {[%clk 0:01:06]}  Nxb3 {[%clk 0:02:17]} 22. axb3 {[%clk 0:00:59]}  f5 {[%clk 0:02:16]} 23. Bd6 {[%clk 0:00:52]}  O-O {[%clk 0:02:17]} 24. Bxe7 {[%clk 0:00:43]}  Qxe7 {[%clk 0:02:18]} 25. Qf4 {[%clk 0:00:43]}  Qg5 {[%clk 0:02:02]} 26. Qc7 {[%clk 0:00:31]}  Rac8 {[%clk 0:01:49]} 0-1


[Site "https://www.chess.com"]

[Event "Titled Tuesday Blitz March 21 Early 2023"]
[White "Szyszylo, Rafal"]
[Black "monkins"]
[WhiteFideId "1109626"]
[WhiteElo "1951"]
[BlackElo "2238"]
[Result "1-0"]
[Round "08"]
[TimeControl "180+2"]
[Date "2023.03.21"]
[WhiteClock "0:00:19"]
[BlackClock "0:00:01"]

1. e4 {[%clk 0:03:00]}  c5 {[%clk 0:02:59]} 2. Ne2 {[%clk 0:03:00]}  g6 {[%clk 0:02:58]} 3. g3 {[%clk 0:03:00]}  Bg7 {[%clk 0:02:58]} 4. Bg2 {[%clk 0:03:00]}  e5 {[%clk 0:02:57]} 5. O-O {[%clk 0:02:59]}  Ne7 {[%clk 0:02:56]} 6. c3 {[%clk 0:03:00]}  d5 {[%clk 0:02:55]} 7. exd5 {[%clk 0:02:59]}  Nxd5 {[%clk 0:02:54]} 8. d4 {[%clk 0:03:00]}  cxd4 {[%clk 0:02:39]} 9. cxd4 {[%clk 0:02:54]}  exd4 {[%clk 0:02:39]} 10. Nxd4 {[%clk 0:02:45]}  O-O {[%clk 0:02:39]} 11. Re1 {[%clk 0:02:26]}  Nc6 {[%clk 0:02:34]} 12. Nxc6 {[%clk 0:02:25]}  bxc6 {[%clk 0:02:35]} 13. Qc2 {[%clk 0:02:19]}  Qb6 {[%clk 0:02:26]} 14. Nc3 {[%clk 0:02:15]}  Nxc3 {[%clk 0:02:17]} 15. bxc3 {[%clk 0:02:16]}  Bf5 {[%clk 0:02:17]} 16. Be4 {[%clk 0:02:00]}  Bxe4 {[%clk 0:02:17]} 17. Rxe4 {[%clk 0:02:00]}  Rfe8 {[%clk 0:02:15]} 18. Rb1 {[%clk 0:01:53]}  Qc5 {[%clk 0:01:59]} 19. Be3 {[%clk 0:01:39]}  Qxc3 {[%clk 0:01:54]} 20. Qxc3 {[%clk 0:01:39]}  Bxc3 {[%clk 0:01:55]} 21. Rc4 {[%clk 0:01:39]}  Be5 {[%clk 0:01:25]} 22. Rb7 {[%clk 0:01:36]}  a5 {[%clk 0:01:13]} 23. Rxc6 {[%clk 0:01:34]}  a4 {[%clk 0:01:12]} 24. Bh6 {[%clk 0:01:12]}  a3 {[%clk 0:01:09]} 25. Rc5 {[%clk 0:00:45]}  Bg7 {[%clk 0:00:26]} 26. Be3 {[%clk 0:00:44]}  Rec8 {[%clk 0:00:18]} 27. Rd5 {[%clk 0:00:39]}  Rd8 {[%clk 0:00:13]} 28. Rxd8+ {[%clk 0:00:34]}  Rxd8 {[%clk 0:00:12]} 29. Ra7 {[%clk 0:00:28]}  Bb2 {[%clk 0:00:11]} 30. Bc5 {[%clk 0:00:27]}  Rd1+ {[%clk 0:00:10]} 31. Kg2 {[%clk 0:00:27]}  Ra1 {[%clk 0:00:09]} 32. Ra8+ {[%clk 0:00:22]}  Kg7 {[%clk 0:00:07]} 33. Bxa3 {[%clk 0:00:22]}  Bxa3 {[%clk 0:00:05]} 34. Rxa3 {[%clk 0:00:21]}  h5 {[%clk 0:00:05]} 35. h4 {[%clk 0:00:21]}  Kf6 {[%clk 0:00:03]} 36. Ra5 {[%clk 0:00:21]}  Kg7 {[%clk 0:00:03]} 37. Kf3 {[%clk 0:00:20]}  Kf6 {[%clk 0:00:02]} 38. Kf4 {[%clk 0:00:20]}  Ke6 {[%clk 0:00:01]} 39. a3 {[%clk 0:00:19]} 1-0


[Site "https://www.chess.com"]